lending/lending_fUSD_20250130
["ID","MTS","AMOUNT","RATE_DAILY","PERIOD"]
[350926530,1738206633680,-61494.60818032,0.00021393,2]
[350926531,1738206633690,-634.74788209,0.000214,3]
[350926532,1738206633700,-153.4869211,0.000214,2]
[350926533,1738206633709,-220.8487,0.000214,2]
[350926534,1738206633719,-157.8381,0.000214,2]
[350926535,1738206633729,-1000.0,0.000214,2]
[350926536,1738206633738,-3738.1061,0.000214,2]
[350926537,1738206633748,-481.6231,0.000214,2]
[350926538,1738206633759,-21004.8043,0.000214,2]
[350926539,1738206633768,-4674.4659,0.000214,2]
[350926540,1738206633778,-1500.0,0.000214,2]
[350926541,1738206633788,-580.22,0.000214,31]
[350926542,1738206633798,-580.22,0.000214,31]
[350926543,1738206633808,-580.22,0.000214,31]
[350926544,1738206633818,-580.22,0.000214,31]
[350926545,1738206633828,-580.22,0.000214,31]
[350926546,1738206633839,-580.22,0.000214,31]
[350926547,1738206633849,-580.22,0.000214,31]
[350926548,1738206633859,-580.22,0.000214,31]
[350926549,1738206633869,-580.22,0.000214,31]
[350926550,1738206633879,-580.22,0.000214,31]
[350926551,1738206633889,-580.22,0.000214,31]
[350926552,1738206633899,-580.22,0.000214,31]
[350926553,1738206633908,-580.22,0.000214,31]
[350926554,1738206633918,-580.22,0.000214,31]
[350926555,1738206633928,-580.22,0.000214,31]
[350926556,1738206633937,-580.22,0.000214,31]
[350926557,1738206633947,-2118.48379988,0.000214,2]
[350926558,1738206633957,-345.2405569,0.000214,2]
[350926559,1738206633967,-723.09773632,0.000214,2]
[350926560,1738206633976,-177.26691728,0.000214,3]
[350926561,1738206633987,-432.12924833,0.000214,2]
[350926562,1738206633997,-500.0,0.00021416,2]
[350926563,1738206634008,-1709.17,0.00021416,2]
[350926564,1738206634017,-500.0,0.00021416,2]
[350926565,1738206634027,-500.0,0.00021416,2]
[350926566,1738206634038,-500.0,0.00021416,2]
[350926567,1738206634048,-500.0,0.00021416,2]
[350926568,1738206634058,-1267.17641501,0.00021417,2]
[350926569,1738206634069,-3673.37554901,0.00021417,2]
[350926570,1738206634080,-153.48692107,0.00021427,2]
[350926571,1738206634090,-153.48692107,0.00021454,2]
[350926572,1738206634100,-345.24055689,0.00021456,2]
[350926573,1738206634110,-723.09773631,0.00021456,2]
[350926574,1738206634121,-150.0,0.00021479,4]
[350926575,1738206634131,-150.0,0.00021479,4]
[350926576,1738206634141,-150.0,0.00021479,4]
[350926577,1738206634151,-150.0,0.00021479,4]
[350926578,1738206634161,-153.48692107,0.0002148,2]
[350926579,1738206634171,-150.0,0.00021486,4]
[350926580,1738206634182,-3673.37554901,0.00021486,2]
[350926581,1738206634192,-7534.93827819,0.00021488,2]
[350926584,1738206637758,-569.654,0.00020026,2]
[350926585,1738206637768,-383.68577247,0.000214,2]
[350926586,1738206637778,-14509.91467282,0.00021488,2]
[350926587,1738206637789,-21352.9479658,0.00021488,2]
[350926588,1738206637801,-60822.02227277,0.00021488,2]
[350926589,1738206637834,-237895.30382238,0.00021488,2]
[350926590,1738206637846,-928.50576371,0.00021488,2]
[350926591,1738206637890,-1427.37538405,0.00021488,2]
[350926674,1738206639884,-383.68577247,0.00021456,2]
[350926675,1738206639896,-158.90427254,0.00021488,2]
[350926676,1738206639911,-15381.33123423,0.00021488,2]
[350926677,1738206639925,-381.28266465,0.00021488,2]
[350926678,1738206639937,-168588.94454194,0.00021488,2]
[350926679,1738206640033,-563.20462889,0.00021488,2]
[350926680,1738206640048,-59578.08436193,0.00021488,2]
[350926681,1738206640085,-20916.57892697,0.00021488,2]
[350926682,1738206640103,-475.8703,0.00021488,2]
[350926683,1738206640116,-41969.44977884,0.00021488,2]
[350926684,1738206640139,-456.875,0.00021488,2]
[350926685,1738206640152,-4093.47834983,0.00021488,2]
[350926686,1738206640164,-1159.43243568,0.00021488,2]
[350926687,1738206640175,-4980.16031994,0.00021488,2]
[350926688,1738206640187,-11148.5019612,0.00021488,2]
[350926696,1738206642752,-500.0,0.00021392,2]
[350926697,1738206642762,-415.8578481,0.00021488,2]
[350926698,1738206642775,-7133.64362223,0.00021488,2]
[350926699,1738206642786,-732.39709636,0.00021488,2]
[350926700,1738206642804,-7362.04958232,0.00021488,2]
[350926701,1738206642816,-288.8463231,0.00021488,2]
[350926702,1738206642830,-422.90000105,0.00021488,2]
[350926703,1738206642858,-6332.2849218,0.00021488,2]
[350926704,1738206642871,-85083.23797818,0.00021488,2]
[350926705,1738206642882,-190.26137434,0.0002149,2]
[350926706,1738206642892,-150.0,0.00021492,4]
[350926707,1738206642903,-150.0,0.00021493,4]
[350926708,1738206642912,-150.0,0.00021498,4]
[350926709,1738206642922,-200.0,0.00021499,2]
[350926710,1738206642933,-500.0,0.00021499,2]
[350926711,1738206642943,-500.0,0.00021499,2]
[350926712,1738206642953,-500.0,0.00021499,2]
[350926713,1738206642963,-999.0,0.00021499,2]
[350926714,1738206642973,-673.0,0.000215,2]
[350926715,1738206642983,-46665.50589232,0.000215,2]
[350926716,1738206642995,-808.56973,0.000215,2]
[350926717,1738206643012,-1324.08525546,0.000215,2]
[350926718,1738206643024,-18587.40094578,0.000215,2]
[350926719,1738206643036,-12293.7488,0.000215,2]
[350926720,1738206643047,-1668.84497925,0.000215,2]
[350926721,1738206643059,-609.72882382,0.000215,2]
[350926722,1738206643072,-51503.86711108,0.000215,2]
[350926724,1738206643084,-2306.71483423,0.000215,2]
[350926726,1738206643096,-956.75,0.000215,2]
[350926727,1738206643107,-25893.7019215,0.000215,2]
[350926728,1738206643120,-351.04387561,0.000215,2]
[350926730,1738206643132,-2079.02430681,0.000215,2]
[350926734,1738206645798,-187761.02185408,0.000215,2]
[350926735,1738206645808,-169890.51344207,0.000215,2]
[350926736,1738206645904,-194826.46752269,0.000215,2]
[350926737,1738206645958,-1330.87005622,0.000215,2]
[350926738,1738206646011,-369.18210102,0.000215,2]
[350926739,1738206646065,-45874.84499518,0.000215,2]
[350926740,1738206646078,-523251.7944034,0.000215,2]
[350926810,1738206687671,220.87,0.00010137,2]
[350926811,1738206690790,150.0,0.00022468,120]
[350926813,1738206750757,150.0,0.00022491,120]
[350926814,1738206790252,500.0,0.00023,120]
[350926815,1738206793528,2000.0,0.00023,120]
[350926816,1738206805486,200.0,0.00023,120]
[350926817,1738206810728,150.0,0.00022079,120]
[350926818,1738206870741,150.0,0.0002192,120]
[350926820,1738206923578,1029.53324651,0.00023,120]
[350926823,1738206930762,150.0,0.00022144,120]
[350926826,1738206990927,150.0,0.00021219,120]
[350926827,1738207051276,150.0,0.00022153,120]
[350926829,1738207171463,150.0,0.00020646,120]
[350926830,1738207192132,500.0,0.00023,120]
[350926831,1738207199721,500.0,0.00023,120]
[350926832,1738207207021,500.0,0.00023,120]
[350926833,1738207217604,500.0,0.00023,120]
[350926834,1738207224862,500.0,0.00023,120]
[350926835,1738207231261,150.0,0.00020631,120]
[350926836,1738207234103,533.68875263,0.00023,120]
[350926837,1738207391899,500.0,0.00023,120]
[350926838,1738207394866,2000.0,0.00023,120]
[350926839,1738207405896,200.0,0.00023,120]
[350926840,1738207410784,150.0,0.0002291,120]
[350926841,1738207471285,150.0,0.00022057,120]
[350926842,1738207526796,998.99619476,0.00023,120]
[350926843,1738207530762,150.0,0.00022663,120]
[350926844,1738207543955,284.94257253,0.00022,120]
[350926846,1738207590759,150.0,0.00022932,120]
[350926847,1738207598260,1566.07000603,0.00023,120]
[350926849,1738207630761,2315.40261303,0.00021,120]
[350926850,1738207631511,1007.20212155,0.00022,120]
[350926851,1738207650748,150.0,0.00021947,120]
[350926852,1738207667171,580.3901365,0.0002,120]
[350926853,1738207669967,333.53874194,0.0002,120]
[350926854,1738207710738,150.0,0.00022384,120]
[350926855,1738207721298,202.0,0.0002,120]
[350926859,1738207723812,800.0,0.00021,120]
[350926860,1738207724314,420.61819135,0.00022,120]
[350926861,1738207724348,411.6820384,0.00022,120]
[350926862,1738207724471,195.78,0.0002,120]
[350926863,1738207771269,150.0,0.00022042,120]
[350926872,1738207831318,150.0,0.00021285,120]
[350926882,1738207832013,-639.900128,0.00016,2]
[350926884,1738207832122,-581.92806085,0.00016,2]
[350926885,1738207832134,-195.8798252,0.0001634,2]
[350926886,1738207832146,-220.87,0.00016813,2]
[350926887,1738207832161,-150.0,0.00017281,2]
[350926888,1738207832172,-150.0,0.00017281,2]
[350926889,1738207832182,-500.0,0.00017748,2]
[350926890,1738207832194,-628.85,0.00018137,2]
[350926891,1738207832204,-150.0,0.00018495,2]
[350926892,1738207832215,-150.0,0.00018495,2]
[350926893,1738207832227,-150.0,0.0001872,2]
[350926894,1738207832238,-150.0,0.0001872,2]
[350926895,1738207832249,-381.83,0.00019098,2]
[350926896,1738207832260,-172.53,0.00019919,2]
[350926897,1738207832271,-500.0,0.0001994,2]
[350926898,1738207832282,-559.85,0.0002,2]
[350926899,1738207832293,-155.78,0.00020004,2]
[350926900,1738207832304,-1000.0,0.00020055,2]
[350926901,1738207832316,-191.59,0.00020163,2]
[350926902,1738207832326,-400.0,0.000204,7]
[350926903,1738207832337,-628.85,0.00020401,2]
[350926905,1738207832348,-800.0,0.000205,7]
[350926907,1738207832359,-1200.0,0.000206,7]
[350926910,1738207832370,-1600.0,0.000207,7]
[350926912,1738207832381,-2000.0,0.000208,7]
[350926914,1738207832392,-5245.95269763,0.000209,2]
[350926916,1738207832403,-400.0,0.000209,7]
[350926918,1738207832413,-75232.5505,0.00021,2]
[350926920,1738207832424,-3000.0,0.000211,2]
[350926922,1738207832435,-23028.53992108,0.000212,2]
[350926925,1738207832452,-2302.360455,0.000212,2]
[350926926,1738207832465,-9965.66742336,0.000212,2]
[350926929,1738207832477,-1598.5381823,0.000212,2]
[350926930,1738207832490,-499.34874343,0.000212,2]
[350926932,1738207832502,-1089.69,0.000212,2]
[350926969,1738207837907,-251.47,0.000212,2]
[350926970,1738207837920,-3264.13760739,0.000212,2]
[350926971,1738207837961,-5508.92049053,0.000212,2]
[350926972,1738207837973,-1590.30761266,0.000212,2]
[350926973,1738207838072,-543.48961775,0.000212,2]
[350926974,1738207838129,-1781.22319268,0.000212,2]
[350926975,1738207838142,-832.25,0.000212,2]
[350927156,1738207839951,-1600.99999997,0.000212,2]
[350927159,1738207840059,-259.71546597,0.000212,2]
[350927183,1738207840273,-110085.76685547,0.000212,2]
[350927241,1738207842998,-74164.38696688,0.000212,2]
[350927242,1738207843011,-4079.34492294,0.000212,2]
[350927243,1738207843107,-1817.67063,0.000212,2]
[350927244,1738207843119,-1765.7713395,0.000212,2]
[350927264,1738207845968,-354.90995621,0.000212,2]
[350927265,1738207845980,-20918.89540525,0.000212,2]
[350927266,1738207845990,-722.412,0.0002128,2]
[350927267,1738207845999,-163.03162,0.0002128,2]
[350927268,1738207846009,-5000.0,0.00021316,2]
[350927269,1738207846018,-212.71931435,0.00021316,2]
[350927270,1738207846029,-500.0,0.00021328,2]
[350927271,1738207846039,-14758.56352719,0.00021354,2]
[350927272,1738207846052,-527.077714,0.00021354,2]
[350927273,1738207846064,-129074.88313331,0.00021354,2]
[350927274,1738207846073,-500.0,0.00021399,2]
[350927275,1738207846083,-247.02257013,0.00021399,2]
[350927276,1738207846093,-274.02742987,0.00021399,2]
[350927277,1738207846103,-500.0,0.00021399,2]
[350927278,1738207846113,-561.05,0.00021399,2]
[350927279,1738207846123,-1659.0,0.00021399,2]
[350927280,1738207846134,-500.0,0.00021399,2]
[350927281,1738207846143,-500.0,0.00021399,2]
[350927282,1738207846154,-500.0,0.00021399,2]
[350927283,1738207846164,-500.0,0.00021399,2]
[350927284,1738207846173,-153.48692107,0.000214,2]
[350927285,1738207846183,-187.926351,0.000214,2]
[350927286,1738207846191,-487.44,0.000214,31]
[350927287,1738207846201,-487.44,0.000214,31]
[350927288,1738207846210,-487.44,0.000214,31]
[350927289,1738207846219,-487.44,0.000214,31]
[350927290,1738207846228,-487.44,0.000214,31]
[350927291,1738207846237,-487.44,0.000214,31]
[350927292,1738207846247,-487.44,0.000214,31]
[350927293,1738207846255,-487.44,0.000214,31]
[350927294,1738207846265,-487.44,0.000214,31]
[350927295,1738207846274,-487.44,0.000214,31]
[350927296,1738207846284,-487.44,0.000214,31]
[350927297,1738207846294,-487.44,0.000214,31]
[350927298,1738207846304,-487.44,0.000214,31]
[350927300,1738207846314,-487.44,0.000214,31]
[350927302,1738207846326,-487.44,0.000214,31]
[350927304,1738207846336,-487.44,0.000214,31]
[350927306,1738207846346,-1977.25154648,0.000214,2]
[350927308,1738207846355,-241.03257877,0.000214,2]
[350927310,1738207846366,-432.12924833,0.000214,2]
[350927312,1738207846376,-4768.44693834,0.00021415,10]
[350927314,1738207846385,-500.0,0.00021415,2]
[350927316,1738207846395,-500.0,0.00021415,2]
[350927318,1738207846404,-1566.74,0.00021415,2]
[350927319,1738207846414,-500.0,0.00021415,2]
[350927321,1738207846424,-500.0,0.00021415,2]
[350927322,1738207846434,-474.20797308,0.00021415,2]
[350927323,1738207846443,-500.0,0.00021415,2]
[350927324,1738207846453,-241.03257877,0.00021458,2]
[350927325,1738207846462,-500.0,0.0002147,2]
[350927326,1738207846472,-150.0,0.00021479,4]
[350927327,1738207846482,-150.0,0.00021479,4]
[350927328,1738207846491,-150.0,0.00021479,4]
[350927329,1738207846501,-230.804118,0.00021479,4]
[350927330,1738207846512,-150.0,0.00021487,4]
[350927331,1738207846522,-195.0,0.0002149,6]
[350927332,1738207846532,-150.0,0.00021496,4]
[350927333,1738207846542,-150.0,0.00021497,4]
[350927334,1738207846551,-1182.17596776,0.00021499,5]
[350927335,1738207846561,-200.0,0.00021499,2]
[350927336,1738207846571,-500.0,0.00021499,2]
[350927337,1738207846580,-999.0,0.00021499,2]
[350927338,1738207846590,-602.0,0.000215,2]
[350927339,1738207846599,-224718.15811463,0.000215,2]
[350927340,1738207846612,-430.75709791,0.000215,2]
[350927341,1738207846624,-264193.0707136,0.000215,2]
[350927342,1738207846633,-307215.64202888,0.000215,2]
[350927343,1738207846646,-10575.5,0.000215,2]
[350927344,1738207846657,-203671.75966558,0.000215,2]
[350927345,1738207846667,-569014.78468709,0.000215,2]
[350927346,1738207846679,-925995.6219621,0.000215,2]
[350927347,1738207846691,-111033.67900941,0.000215,2]
[350927348,1738207846703,-797.30140703,0.000215,2]
[350927349,1738207846714,-10634.5999995,0.000215,2]
[350927350,1738207846725,-9737.1,0.000215,2]
[350927351,1738207846737,-60945.0,0.000215,2]
[350927352,1738207890768,150.0,0.00021606,120]
[350927353,1738207950745,150.0,0.00022406,120]
[350927354,1738207990860,160.223123,0.00023,120]
[350927355,1738207994021,2000.0,0.00023,120]
[350927356,1738208003856,200.0,0.00023,120]
[350927357,1738208010785,150.0,0.00020566,120]
[350927358,1738208071467,150.0,0.00021196,120]
[350927359,1738208130754,150.0,0.00021201,120]
[350927360,1738208190747,150.0,0.00021448,120]
[350927361,1738208251368,150.0,0.00022321,120]
[350927362,1738208389278,174.4,0.00010137,2]
[350927364,1738208592625,2000.0,0.00023,120]
[350927365,1738208602471,200.0,0.00023,120]
[350927366,1738208734089,10588.5,0.00023,120]
[350927378,1738209032211,-550.0,0.00013,2]
[350927379,1738209032221,-104.1320935,0.00015,2]
[350927380,1738209032234,-495.8679065,0.00015,2]
[350927381,1738209032243,-380.5,0.00017748,2]
[350927382,1738209032254,-123.6320935,0.00017748,2]
[350927383,1738209032266,-26.3679065,0.00017748,2]
[350927384,1738209032276,-500.0,0.00017748,2]
[350927385,1738209032286,-600.97,0.00018361,2]
[350927386,1738209032299,-150.0,0.00019353,2]
[350927387,1738209032310,-150.0,0.00019523,2]
[350927388,1738209032320,-140.66804465,0.0001994,2]
[350927389,1738209032332,-359.33195535,0.0001994,2]
[350927390,1738209032342,-503.87,0.0002,2]
[350927391,1738209032356,-478.72861596,0.000201,2]
[350927392,1738209032368,-988.3344858,0.000201,2]
[350927393,1738209032382,-476.67512439,0.000201,2]
[350927394,1738209032397,-1482.6,0.000201,2]
[350927395,1738209032409,-955.66177385,0.000201,2]
[350927396,1738209032419,-300.0,0.00020105,2]
[350927397,1738209032429,-64.17623065,0.00020106,2]
[350927398,1738209032440,-1742.93376935,0.00020106,2]
[350927399,1738209032450,-172.53,0.00020198,2]
[350927400,1738209032460,-155.78,0.00020374,2]
[350927401,1738209032470,-1000.0,0.00020394,2]
[350927402,1738209032480,-162.6,0.00020445,2]
[350927403,1738209032489,-13.15375195,0.00020625,2]
[350927404,1738209032501,-587.81624805,0.00020625,2]
[350927405,1738209032511,-3000.0,0.000211,2]
[350927406,1738209032520,-163.03162,0.0002128,2]
[350927407,1738209032530,-500.0,0.00021328,2]
[350927408,1738209032540,-2906.2876,0.000214,2]
[350927409,1738209032550,-409.48,0.000214,31]
[350927410,1738209032560,-409.48,0.000214,31]
[350927411,1738209032570,-409.48,0.000214,31]
[350927412,1738209032579,-409.48,0.000214,31]
[350927413,1738209032590,-140.58423484,0.000214,31]
[350927414,1738209032601,-268.89576516,0.000214,31]
[350927415,1738209032611,-409.48,0.000214,31]
[350927416,1738209032620,-409.48,0.000214,31]
[350927418,1738209032630,-409.48,0.000214,31]
[350927420,1738209032640,-173.1100402,0.000214,31]
[350927422,1738209032653,-236.3699598,0.000214,31]
[350927424,1738209032663,-409.48,0.000214,31]
[350927426,1738209032673,-409.48,0.000214,31]
[350927428,1738209032683,-409.48,0.000214,31]
[350927430,1738209032692,-109.76060902,0.000214,31]
[350927433,1738209032708,-299.71939098,0.000214,31]
[350927435,1738209032719,-409.48,0.000214,31]
[350927437,1738209032728,-409.48,0.000214,31]
[350927439,1738209032738,-409.48,0.000214,31]
[350927441,1738209032748,-803.98900902,0.000214,2]
[350927443,1738209032759,-1041.44576776,0.000214,2]
[350927445,1738209032770,-858.34915188,0.000214,2]
[350927447,1738209032780,-858.34915188,0.00021459,2]
[350927449,1738209032790,-150.0,0.00021479,4]
[350927451,1738209032800,-150.0,0.00021479,4]
[350927453,1738209032809,-150.0,0.00021479,4]
[350927455,1738209032819,-150.0,0.0002149,4]
[350927458,1738209032830,-577.93,0.0002149,2]
[350927461,1738209032839,-200.0,0.0002149,6]
[350927463,1738209032849,-500.0,0.00021499,2]
[350927467,1738209032858,-500.0,0.00021499,2]
[350927470,1738209032872,-500.0,0.00021499,2]
[350927473,1738209032882,-500.0,0.00021499,2]
[350927476,1738209032894,-200.0,0.00021499,2]
[350927479,1738209032904,-510.5,0.00021499,2]
[350927482,1738209032914,-1501.46,0.00021499,2]
[350927485,1738209032923,-999.0,0.00021499,2]
[350927488,1738209032933,-500.0,0.00021499,2]
[350927492,1738209032943,-500.0,0.00021499,2]
[350927495,1738209032952,-500.0,0.00021499,2]
[350927498,1738209032962,-500.0,0.00021499,2]
[350927501,1738209032972,-500.0,0.00021499,2]
[350927503,1738209032981,-500.0,0.00021499,2]
[350927505,1738209032991,-500.0,0.00021499,2]
[350927507,1738209033000,-500.0,0.00021499,2]
[350927509,1738209033010,-500.0,0.00021499,2]
[350927511,1738209033019,-500.0,0.00021499,2]
[350927513,1738209033029,-500.0,0.00021499,2]
[350927515,1738209033039,-387.45061995,0.00021499,2]
[350927517,1738209033048,-500.0,0.00021499,4]
[350927519,1738209033058,-500.0,0.00021499,4]
[350927521,1738209033068,-500.0,0.00021499,4]
[350927523,1738209033078,-500.0,0.00021499,4]
[350927525,1738209033088,-500.0,0.00021499,4]
[350927527,1738209033098,-537.67,0.00021499,4]
[350927529,1738209033107,-284.83969536,0.00021499,4]
[350927531,1738209033120,-215.16030464,0.00021499,4]
[350927533,1738209033131,-500.0,0.00021499,4]
[350927535,1738209033141,-191.41761759,0.00021499,4]
[350927538,1738209033153,-537.67,0.00021499,4]
[350927540,1738209033163,-537.67,0.00021499,4]
[350927542,1738209033173,-537.67,0.00021499,4]
[350927544,1738209033184,-537.67,0.00021499,4]
[350927546,1738209033194,-537.67,0.00021499,4]
[350927548,1738209033205,-537.67,0.00021499,4]
[350927550,1738209033215,-537.67,0.00021499,4]
[350927552,1738209033225,-537.67,0.00021499,4]
[350927554,1738209033235,-537.67,0.00021499,4]
[350927556,1738209033245,-537.67,0.00021499,4]
[350927558,1738209033255,-537.67,0.00021499,4]
[350927560,1738209033266,-537.67,0.00021499,4]
[350927562,1738209033277,-74.91796488,0.00021499,4]
[350927779,1738209038021,-363.60613795,0.00021499,4]
[350927780,1738209038076,-99.14589717,0.00021499,4]
[350927781,1738209038086,-537.67,0.00021499,4]
[350927782,1738209038095,-537.67,0.00021499,4]
[350927783,1738209038105,-537.67,0.00021499,4]
[350927784,1738209038116,-537.67,0.00021499,4]
[350927785,1738209038126,-537.67,0.00021499,4]
[350927786,1738209038136,-537.67,0.00021499,4]
[350927787,1738209038145,-537.67,0.00021499,4]
[350927788,1738209038156,-537.67,0.00021499,4]
[350927789,1738209038166,-537.67,0.00021499,4]
[350927790,1738209038176,-537.87736587,0.00021499,4]
[350927791,1738209038186,-1589.87,0.00021499,4]
[350927792,1738209038195,-1589.87,0.00021499,4]
[350927793,1738209038205,-1589.87,0.00021499,4]
[350927794,1738209038214,-1589.87,0.00021499,4]
[350927795,1738209038224,-1589.87,0.00021499,4]
[350927796,1738209038235,-1589.87,0.00021499,4]
[350927797,1738209038244,-1589.87,0.00021499,4]
[350927798,1738209038253,-1589.87,0.00021499,4]
[350927799,1738209038263,-1589.87,0.00021499,4]
[350927800,1738209038273,-1194.67467084,0.00021499,4]
[350927801,1738209038285,-395.19532916,0.00021499,4]
[350927802,1738209038295,-1376.08867089,0.00021499,4]
[350927803,1738209038315,-213.78132911,0.00021499,4]
[350927804,1738209038324,-1589.87,0.00021499,4]
[350927805,1738209038334,-1589.87,0.00021499,4]
[350927806,1738209038345,-1589.87,0.00021499,4]
[350927808,1738209038354,-1589.87,0.00021499,4]
[350927809,1738209038363,-1589.87,0.00021499,4]
[350927811,1738209038373,-1589.87,0.00021499,4]
[350927812,1738209038384,-951.03409699,0.00021499,4]
[350927813,1738209038403,-500.3224866,0.00021499,4]
[350927815,1738209038414,-138.51341641,0.00021499,4]
[350927817,1738209038424,-1589.87,0.00021499,4]
[350927819,1738209038434,-1589.87,0.00021499,4]
[350927821,1738209038443,-1589.87,0.00021499,4]
[350927823,1738209038453,-1549.82884953,0.00021499,4]
[350927825,1738209038464,-40.04115047,0.00021499,4]
[350927827,1738209038473,-1589.87,0.00021499,4]
[350927828,1738209038483,-1590.07318048,0.00021499,4]
[350927830,1738209038493,-500.0,0.00021499,4]
[350927831,1738209038504,-500.0,0.00021499,4]
[350927832,1738209038515,-500.0,0.00021499,4]
[350927834,1738209038524,-500.0,0.00021499,4]
[350927836,1738209038534,-500.0,0.00021499,4]
[350927838,1738209038543,-500.0,0.00021499,4]
[350927840,1738209038553,-500.0,0.00021499,4]
[350927842,1738209038562,-500.0,0.00021499,4]
[350927843,1738209038573,-500.0,0.00021499,4]
[350927846,1738209038583,-500.0,0.00021499,4]
[350927847,1738209038593,-500.0,0.00021499,4]
[350927849,1738209038602,-500.0,0.00021499,4]
[350927851,1738209038612,-500.0,0.00021499,4]
[350927854,1738209038621,-500.0,0.00021499,4]
[350927856,1738209038631,-500.0,0.00021499,4]
[350927858,1738209038641,-500.0,0.00021499,4]
[350927860,1738209038650,-500.0,0.00021499,4]
[350927862,1738209038659,-500.0,0.00021499,4]
[350927864,1738209038669,-500.0,0.00021499,4]
[350927866,1738209038678,-500.0,0.00021499,4]
[350927868,1738209038688,-500.0,0.00021499,4]
[350927870,1738209038697,-500.0,0.00021499,4]
[350927872,1738209038707,-500.0,0.00021499,4]
[350927874,1738209038717,-500.0,0.00021499,4]
[350927876,1738209038726,-500.0,0.00021499,4]
[350927878,1738209038735,-500.0,0.00021499,4]
[350927880,1738209038745,-500.0,0.00021499,4]
[350927882,1738209038754,-500.0,0.00021499,4]
[350927884,1738209038764,-500.0,0.00021499,4]
[350927886,1738209038774,-500.0,0.00021499,4]
[350927888,1738209038783,-500.0,0.00021499,4]
[350927890,1738209038793,-500.0,0.00021499,4]
[350927892,1738209038802,-500.0,0.00021499,4]
[350927894,1738209038812,-500.0,0.00021499,4]
[350927896,1738209038821,-304.15910015,0.00021499,4]
[350927898,1738209038830,-500.0,0.00021499,4]
[350927900,1738209038839,-366.5933657,0.00021499,4]
[350927902,1738209038849,-498.226458,0.00021499,4]
[350927904,1738209038858,-500.0,0.00021499,4]
[350927906,1738209038868,-500.0,0.00021499,4]
[350927908,1738209038878,-500.0,0.00021499,4]
[350927910,1738209038889,-500.0,0.00021499,4]
[350927912,1738209038899,-500.0,0.00021499,4]
[350927914,1738209038912,-500.0,0.00021499,4]
[350927917,1738209038922,-500.0,0.00021499,4]
[350927919,1738209038931,-248.51327538,0.00021499,4]
[350927921,1738209038941,-500.0,0.00021499,4]
[350927923,1738209038951,-500.0,0.00021499,4]
[350927925,1738209038961,-500.0,0.00021499,4]
[350927927,1738209038970,-500.0,0.00021499,4]
[350927929,1738209038980,-500.0,0.00021499,4]
[350927931,1738209038990,-500.0,0.00021499,4]
[350927933,1738209038999,-500.0,0.00021499,4]
[350927935,1738209039008,-60817.98818025,0.000215,2]
[350927937,1738209039018,-545.0,0.000215,2]
[350927939,1738209039027,-16352.31487549,0.000215,2]
[350928010,1738209040086,-500.0,0.00021499,4]
[350928011,1738209040096,-500.0,0.00021499,4]
[350928012,1738209040105,-500.0,0.00021499,4]